[Event "*** Titled Tuesday Blitz"]
[Site "Chess.com"]
[Date "2021.03.02"]
[Round "8"]
[White "HrvojeZagreb"]
[Black "Piotrek1979"]
[Result "0-1"]
[WhiteElo "2258"]
[BlackElo "2370"]
[TimeControl "180+1"]
[EndTime "11:29:11 PST"]
[Termination "Piotrek1979 won by resignation"]

1. d4 {[%clk 0:03:00.9]} 1... Nf6 {[%clk 0:02:56]} 2. Bf4 {[%clk 0:03:00.3]}
2... c5 {[%clk 0:02:54.8]} 3. e3 {[%clk 0:03:00.3]} 3... Qb6 {[%clk 0:02:52.1]}
4. Na3 {[%clk 0:03:00.4]} 4... g6 {[%clk 0:02:27.2]} 5. Nc4 {[%clk 0:02:48.5]}
5... Qc6 {[%clk 0:02:11.1]} 6. a4 {[%clk 0:02:36.5]} 6... Bg7 {[%clk 0:01:57.9]}
7. Nf3 {[%clk 0:02:25.1]} 7... cxd4 {[%clk 0:01:53.9]} 8. Nxd4 {[%clk
0:01:48.9]} 8... Qc5 {[%clk 0:01:23.9]} 9. Nb5 {[%clk 0:01:35.6]} 9... Na6
{[%clk 0:01:23]} 10. Ncd6+ {[%clk 0:00:40.2]} 10... exd6 {[%clk 0:01:21.7]} 11.
Nxd6+ {[%clk 0:00:39.9]} 11... Kf8 {[%clk 0:01:11.6]} 12. Bxa6 {[%clk
0:00:11.7]} 12... bxa6 {[%clk 0:01:10]} 13. O-O {[%clk 0:00:11.2]} 13... Ne8
{[%clk 0:01:05.9]} 14. Ne4 {[%clk 0:00:09.3]} 14... Qc6 {[%clk 0:01:02.9]} 15.
Qd3 {[%clk 0:00:06.4]} 15... Bb7 {[%clk 0:01:01.8]} 16. f3 {[%clk 0:00:05.9]}
16... d5 {[%clk 0:00:57.3]} 17. Ng5 {[%clk 0:00:05.1]} 17... h6 {[%clk
0:00:53.1]} 18. Nh3 {[%clk 0:00:05.3]} 18... Rc8 {[%clk 0:00:45.9]} 19. c3
{[%clk 0:00:05.5]} 19... Qc4 {[%clk 0:00:45.3]} 20. Rad1 {[%clk 0:00:04.8]}
20... Qxd3 {[%clk 0:00:43.8]} 21. Rxd3 {[%clk 0:00:05.7]} 21... g5 {[%clk
0:00:43.7]} 22. Bg3 {[%clk 0:00:05.6]} 22... Ke7 {[%clk 0:00:41.9]} 23. b3
{[%clk 0:00:05.7]} 23... Nf6 {[%clk 0:00:40.6]} 24. Rc1 {[%clk 0:00:05.2]} 24...
Rhd8 {[%clk 0:00:39.3]} 25. Be1 {[%clk 0:00:04.8]} 25... Nd7 {[%clk 0:00:38.3]}
26. Nf2 {[%clk 0:00:04.9]} 26... Nc5 {[%clk 0:00:37.7]} 27. Rd2 {[%clk
0:00:03.7]} 0-1

[Event "*** Titled Tuesday Blitz"]
[Site "Chess.com"]
[Date "2021.03.02"]
[Round "8"]
[White "GMaka"]
[Black "albi1999"]
[Result "1-0"]
[WhiteElo "2460"]
[BlackElo "2580"]
[TimeControl "180+1"]
[EndTime "11:29:12 PST"]
[Termination "GMaka won by resignation"]

1. d4 {[%clk 0:03:00.9]} 1... Nf6 {[%clk 0:02:57.5]} 2. Bg5 {[%clk 0:02:59.8]}
2... Ne4 {[%clk 0:02:48.4]} 3. Bf4 {[%clk 0:02:59.3]} 3... d5 {[%clk 0:02:43.3]}
4. e3 {[%clk 0:02:59.2]} 4... c5 {[%clk 0:02:40.1]} 5. Bd3 {[%clk 0:02:58.3]}
5... cxd4 {[%clk 0:02:30.6]} 6. Bxe4 {[%clk 0:02:57.7]} 6... dxe4 {[%clk
0:02:29.1]} 7. exd4 {[%clk 0:02:55.5]} 7... e6 {[%clk 0:02:27.7]} 8. Nc3 {[%clk
0:02:49]} 8... Nc6 {[%clk 0:02:16.1]} 9. Nge2 {[%clk 0:02:47.2]} 9... Bd6 {[%clk
0:02:01.1]} 10. Bxd6 {[%clk 0:02:12.2]} 10... Qxd6 {[%clk 0:02:02]} 11. Nxe4
{[%clk 0:02:13.1]} 11... Qb4+ {[%clk 0:01:58.7]} 12. c3 {[%clk 0:02:13.4]} 12...
Qxb2 {[%clk 0:01:55]} 13. Nd6+ {[%clk 0:02:11.5]} 13... Kf8 {[%clk 0:01:47.7]}
14. O-O {[%clk 0:01:19.1]} 14... Qa3 {[%clk 0:01:45]} 15. Nc4 {[%clk 0:01:09]}
15... Qe7 {[%clk 0:01:41.3]} 16. Qd2 {[%clk 0:01:01.2]} 16... g6 {[%clk
0:01:37.9]} 17. Qh6+ {[%clk 0:01:00.5]} 17... Kg8 {[%clk 0:01:37.8]} 18. a4
{[%clk 0:00:57.5]} 18... b6 {[%clk 0:01:36.9]} 19. Ne5 {[%clk 0:00:42]} 19...
Nd8 {[%clk 0:01:26.9]} 20. Nf4 {[%clk 0:00:30.1]} 20... f6 {[%clk 0:01:22.9]}
21. Nexg6 {[%clk 0:00:20.3]} 21... hxg6 {[%clk 0:01:17.4]} 22. Qxh8+ {[%clk
0:00:20.5]} 22... Kxh8 {[%clk 0:01:15.3]} 23. Nxg6+ {[%clk 0:00:20.4]} 23... Kg7
{[%clk 0:01:16.2]} 24. Nxe7 {[%clk 0:00:21.3]} 24... Bb7 {[%clk 0:01:16.9]} 25.
a5 {[%clk 0:00:19.5]} 25... Kf7 {[%clk 0:01:14.1]} 26. axb6 {[%clk 0:00:19.9]}
26... Kxe7 {[%clk 0:01:10.8]} 27. Rxa7 {[%clk 0:00:19.5]} 27... Rc8 {[%clk
0:01:08.6]} 28. c4 {[%clk 0:00:19.4]} 28... Rxc4 {[%clk 0:01:06.7]} 29. h4
{[%clk 0:00:18.8]} 29... Rb4 {[%clk 0:01:04.7]} 30. Rc1 {[%clk 0:00:19]} 30...
Rxb6 {[%clk 0:01:02]} 31. Rc7+ {[%clk 0:00:16.5]} 31... Kd6 {[%clk 0:00:59.1]}
32. Rg7 {[%clk 0:00:17]} 32... Nc6 {[%clk 0:00:58.4]} 33. Raxb7 {[%clk
0:00:16.5]} 33... Rxb7 {[%clk 0:00:49.8]} 34. Rxb7 {[%clk 0:00:17.4]} 34... Nxd4
{[%clk 0:00:50.3]} 35. h5 {[%clk 0:00:17.1]} 35... Nf5 {[%clk 0:00:48.6]} 36. g4
{[%clk 0:00:16.8]} 36... Nh6 {[%clk 0:00:48.4]} 37. f3 {[%clk 0:00:17.3]} 37...
e5 {[%clk 0:00:47.8]} 38. Rh7 {[%clk 0:00:16.1]} 1-0

[Event "*** Titled Tuesday Blitz"]
[Site "Chess.com"]
[Date "2021.03.02"]
[Round "8"]
[White "Kaliopa"]
[Black "tgpgoat"]
[Result "0-1"]
[WhiteElo "2234"]
[BlackElo "2106"]
[TimeControl "180+1"]
[EndTime "11:29:15 PST"]
[Termination "tgpgoat won on time"]

1. d4 {[%clk 0:03:00.9]} 1... Nf6 {[%clk 0:02:59.6]} 2. c4 {[%clk 0:03:00.7]}
2... c5 {[%clk 0:02:59]} 3. d5 {[%clk 0:02:59.6]} 3... b5 {[%clk 0:02:57.7]} 4.
cxb5 {[%clk 0:02:59.7]} 4... a6 {[%clk 0:02:57.6]} 5. b6 {[%clk 0:03:00]} 5...
a5 {[%clk 0:02:57.2]} 6. Nc3 {[%clk 0:02:58.9]} 6... Qxb6 {[%clk 0:02:56.3]} 7.
e4 {[%clk 0:02:55.3]} 7... d6 {[%clk 0:02:56.4]} 8. Bb5+ {[%clk 0:02:44.8]} 8...
Bd7 {[%clk 0:02:55.7]} 9. Bc4 {[%clk 0:02:38.3]} 9... g6 {[%clk 0:02:42.8]} 10.
f4 {[%clk 0:02:01.3]} 10... Bg7 {[%clk 0:02:40.1]} 11. Nf3 {[%clk 0:01:44.7]}
11... O-O {[%clk 0:02:38.1]} 12. O-O {[%clk 0:01:40.2]} 12... Na6 {[%clk
0:02:36.3]} 13. Qe2 {[%clk 0:01:35.4]} 13... Ne8 {[%clk 0:02:31.5]} 14. e5
{[%clk 0:01:31]} 14... Nec7 {[%clk 0:02:27.2]} 15. e6 {[%clk 0:01:25.5]} 15...
fxe6 {[%clk 0:02:26.7]} 16. dxe6 {[%clk 0:01:24.9]} 16... Bc6 {[%clk 0:02:26.2]}
17. Ng5 {[%clk 0:01:19.9]} 17... d5 {[%clk 0:02:24.1]} 18. Bd3 {[%clk
0:01:19.3]} 18... c4+ {[%clk 0:02:22.3]} 19. Be3 {[%clk 0:01:07]} 19... Bd4
{[%clk 0:01:50.9]} 20. Rf3 {[%clk 0:00:29.4]} 20... cxd3 {[%clk 0:01:42.8]} 21.
Qxd3 {[%clk 0:00:30.3]} 21... Bxe3+ {[%clk 0:01:39.5]} 22. Rxe3 {[%clk
0:00:28.7]} 22... d4 {[%clk 0:01:35.9]} 23. Rh3 {[%clk 0:00:18.2]} 23... dxc3+
{[%clk 0:01:35]} 24. Kh1 {[%clk 0:00:17.2]} 24... Qf2 {[%clk 0:01:30.3]} 25. Rg1
{[%clk 0:00:14.8]} 25... Qxf4 {[%clk 0:00:58.9]} 26. Nxh7 {[%clk 0:00:08.9]}
26... Qf5 {[%clk 0:00:59.2]} 27. Qxc3 {[%clk 0:00:04.6]} 27... Nd5 {[%clk
0:00:49.7]} 28. Qd4 {[%clk 0:00:02.9]} 28... Nf6 {[%clk 0:00:47.1]} 29. Nxf6+
{[%clk 0:00:01.7]} 29... Rxf6 {[%clk 0:00:45.2]} 30. Qh4 {[%clk 0:00:01.4]}
30... Qh5 {[%clk 0:00:39.3]} 0-1

[Event "*** Titled Tuesday Blitz"]
[Site "Chess.com"]
[Date "2021.03.02"]
[Round "8"]
[White "bogcsab"]
[Black "Walter_White_Poland"]
[Result "1-0"]
[WhiteElo "2173"]
[BlackElo "2279"]
[TimeControl "180+1"]
[EndTime "11:29:17 PST"]
[Termination "bogcsab won on time"]

1. d4 {[%clk 0:03:00.9]} 1... Nf6 {[%clk 0:02:57.9]} 2. c4 {[%clk 0:03:00.2]}
2... e6 {[%clk 0:02:57.8]} 3. Nc3 {[%clk 0:02:59]} 3... Bb4 {[%clk 0:02:57.6]}
4. Qb3 {[%clk 0:02:55.8]} 4... Nc6 {[%clk 0:02:56.2]} 5. e3 {[%clk 0:02:54.2]}
5... d5 {[%clk 0:02:51.6]} 6. a3 {[%clk 0:02:47.5]} 6... Bxc3+ {[%clk
0:02:51.4]} 7. bxc3 {[%clk 0:02:47.2]} 7... O-O {[%clk 0:02:50]} 8. cxd5 {[%clk
0:02:46.5]} 8... exd5 {[%clk 0:02:50]} 9. Nf3 {[%clk 0:02:46.3]} 9... Ne4 {[%clk
0:02:41.3]} 10. Bd3 {[%clk 0:02:40.9]} 10... Bf5 {[%clk 0:02:11.4]} 11. Qc2
{[%clk 0:02:27.5]} 11... Bg6 {[%clk 0:02:00]} 12. c4 {[%clk 0:02:11.4]} 12...
Re8 {[%clk 0:01:53.7]} 13. cxd5 {[%clk 0:02:07.3]} 13... Qxd5 {[%clk 0:01:48.8]}
14. O-O {[%clk 0:02:04.2]} 14... Na5 {[%clk 0:01:35.5]} 15. Nd2 {[%clk
0:01:41.6]} 15... Nxd2 {[%clk 0:01:27.7]} 16. Bxd2 {[%clk 0:01:41.5]} 16... Bxd3
{[%clk 0:01:04.3]} 17. Qxd3 {[%clk 0:01:39.9]} 17... Nc4 {[%clk 0:01:04.2]} 18.
Rac1 {[%clk 0:01:26.8]} 18... b5 {[%clk 0:01:03.4]} 19. f3 {[%clk 0:01:17.3]}
19... f5 {[%clk 0:01:03.1]} 20. Rfe1 {[%clk 0:01:08.6]} 20... Rad8 {[%clk
0:01:01.4]} 21. Bc3 {[%clk 0:01:06.1]} 21... Nxa3 {[%clk 0:00:16.1]} 22. Ba5
{[%clk 0:01:06.1]} 22... Nc4 {[%clk 0:00:12.3]} 23. Bxc7 {[%clk 0:01:06.1]}
23... Rd7 {[%clk 0:00:08.1]} 24. Bg3 {[%clk 0:01:05.7]} 24... a5 {[%clk
0:00:06.9]} 25. Bf2 {[%clk 0:01:02.3]} 25... Rde7 {[%clk 0:00:05.9]} 26. Rb1
{[%clk 0:00:57.6]} 26... a4 {[%clk 0:00:05]} 27. Rb4 {[%clk 0:00:42.4]} 27... a3
{[%clk 0:00:03.6]} 28. Qb3 {[%clk 0:00:37.7]} 28... Rb7 {[%clk 0:00:01.6]} 29.
Rb1 {[%clk 0:00:36.4]} 1-0

[Event "*** Titled Tuesday Blitz"]
[Site "Chess.com"]
[Date "2021.03.02"]
[Round "8"]
[White "UmutErdemGunduz"]
[Black "Grandmaster2B"]
[Result "0-1"]
[WhiteElo "2360"]
[BlackElo "2499"]
[TimeControl "180+1"]
[EndTime "11:29:18 PST"]
[Termination "Grandmaster2B won by resignation"]

1. e4 {[%clk 0:03:00.9]} 1... c5 {[%clk 0:03:00.1]} 2. Nf3 {[%clk 0:03:00.7]}
2... d6 {[%clk 0:02:59.9]} 3. d4 {[%clk 0:02:59.9]} 3... cxd4 {[%clk 0:03:00.8]}
4. Nxd4 {[%clk 0:03:00.8]} 4... Nf6 {[%clk 0:03:01.4]} 5. f3 {[%clk 0:03:01.2]}
5... e5 {[%clk 0:02:59]} 6. Nb3 {[%clk 0:03:00.7]} 6... d5 {[%clk 0:02:59.4]} 7.
Bg5 {[%clk 0:02:59]} 7... d4 {[%clk 0:02:58.6]} 8. Bb5+ {[%clk 0:02:57.9]} 8...
Nc6 {[%clk 0:02:57]} 9. c3 {[%clk 0:02:58.4]} 9... dxc3 {[%clk 0:02:50.9]} 10.
Qxd8+ {[%clk 0:02:56.5]} 10... Kxd8 {[%clk 0:02:51.8]} 11. Nxc3 {[%clk
0:02:56.2]} 11... a6 {[%clk 0:02:52]} 12. O-O-O+ {[%clk 0:02:51.6]} 12... Ke8
{[%clk 0:02:47.6]} 13. Bxf6 {[%clk 0:02:03.5]} 13... gxf6 {[%clk 0:02:45.7]} 14.
Nd5 {[%clk 0:02:03.1]} 14... Rb8 {[%clk 0:02:32.6]} 15. Nc7+ {[%clk 0:01:36.8]}
15... Ke7 {[%clk 0:02:30.8]} 16. Nd5+ {[%clk 0:01:36.9]} 16... Ke6 {[%clk
0:02:29.5]} 17. Bc4 {[%clk 0:01:11.8]} 17... b5 {[%clk 0:02:16.3]} 18. Ne3+
{[%clk 0:00:53.5]} 18... Ke7 {[%clk 0:02:14.7]} 19. Bd5 {[%clk 0:00:52.5]} 19...
Bd7 {[%clk 0:02:14.8]} 20. Nc5 {[%clk 0:00:50.6]} 20... Bh6 {[%clk 0:02:13.6]}
21. Rd3 {[%clk 0:00:46.8]} 21... Nb4 {[%clk 0:02:10.8]} 22. Nxd7 {[%clk
0:00:21.6]} 22... Nxd3+ {[%clk 0:02:09.3]} 23. Kd2 {[%clk 0:00:22.3]} 23... Kxd7
{[%clk 0:01:48.9]} 24. Kxd3 {[%clk 0:00:22.1]} 24... Bxe3 {[%clk 0:01:48]} 25.
Kxe3 {[%clk 0:00:23]} 25... Ke7 {[%clk 0:01:48.9]} 26. Rc1 {[%clk 0:00:16.2]}
26... Rbc8 {[%clk 0:01:49.3]} 27. Rd1 {[%clk 0:00:11.9]} 27... Rc2 {[%clk
0:01:48.3]} 28. Rd2 {[%clk 0:00:12.4]} 28... Rhc8 {[%clk 0:01:47.1]} 29. g4
{[%clk 0:00:07.2]} 29... Rxd2 {[%clk 0:01:43.9]} 30. Kxd2 {[%clk 0:00:08.1]}
30... h5 {[%clk 0:01:43.4]} 31. h3 {[%clk 0:00:07]} 31... hxg4 {[%clk
0:01:43.6]} 32. hxg4 {[%clk 0:00:07.9]} 32... Rh8 {[%clk 0:01:44]} 33. b4 {[%clk
0:00:03.8]} 33... Rh3 {[%clk 0:01:39.5]} 34. Ke3 {[%clk 0:00:04]} 34... Rh2
{[%clk 0:01:40]} 35. a3 {[%clk 0:00:02.8]} 35... Rc2 {[%clk 0:01:37.4]} 36. Kd3
{[%clk 0:00:02.9]} 36... Rb2 {[%clk 0:01:37.9]} 37. Kc3 {[%clk 0:00:02.2]} 37...
Rf2 {[%clk 0:01:38.5]} 38. Bb7 {[%clk 0:00:02.3]} 38... Rxf3+ {[%clk 0:01:38.9]}
39. Kb2 {[%clk 0:00:03.2]} 39... Rf2+ {[%clk 0:01:38.6]} 40. Kb3 {[%clk
0:00:04.1]} 40... Kd6 {[%clk 0:01:28.9]} 41. Bxa6 {[%clk 0:00:03.8]} 41... Kc6
{[%clk 0:01:29.5]} 42. Bc8 {[%clk 0:00:04.1]} 42... Rf3+ {[%clk 0:01:29.4]} 43.
Kb2 {[%clk 0:00:04.6]} 43... Re3 {[%clk 0:01:29.5]} 44. Bf5 {[%clk 0:00:05]}
44... Kd6 {[%clk 0:01:28.4]} 45. Ka2 {[%clk 0:00:04.7]} 45... Ke7 {[%clk
0:01:28.7]} 46. Kb2 {[%clk 0:00:05.2]} 46... Kf8 {[%clk 0:01:29.3]} 47. Ka2
{[%clk 0:00:05.4]} 47... Kg7 {[%clk 0:01:29.8]} 48. Kb2 {[%clk 0:00:05.9]} 48...
Kh6 {[%clk 0:01:30.4]} 49. Bd7 {[%clk 0:00:05.6]} 49... Rxe4 {[%clk 0:01:30.1]}
50. Bxb5 {[%clk 0:00:05.9]} 50... Rxg4 {[%clk 0:01:30.7]} 51. Kb3 {[%clk
0:00:06.3]} 51... Rg3+ {[%clk 0:01:30.8]} 52. Ka4 {[%clk 0:00:06.3]} 52... e4
{[%clk 0:01:31.4]} 53. Bc4 {[%clk 0:00:06.3]} 53... Rc3 {[%clk 0:01:31.1]} 54.
Bxf7 {[%clk 0:00:06.3]} 54... e3 {[%clk 0:01:31]} 0-1

[Event "*** Titled Tuesday Blitz"]
[Site "Chess.com"]
[Date "2021.03.02"]
[Round "8"]
[White "Forantes"]
[Black "CrazyMartian"]
[Result "1-0"]
[WhiteElo "2431"]
[BlackElo "2288"]
[TimeControl "180+1"]
[EndTime "11:29:19 PST"]
[Termination "Forantes won by resignation"]

1. Nf3 {[%clk 0:03:00.9]} 1... d5 {[%clk 0:02:59.8]} 2. g3 {[%clk 0:03:00.9]}
2... Nf6 {[%clk 0:02:59.6]} 3. Bg2 {[%clk 0:03:01.4]} 3... c6 {[%clk 0:03:00.1]}
4. O-O {[%clk 0:03:01.9]} 4... Bf5 {[%clk 0:03:00.5]} 5. d4 {[%clk 0:03:02.1]}
5... h6 {[%clk 0:03:00.1]} 6. c4 {[%clk 0:03:02.6]} 6... e6 {[%clk 0:03:00.3]}
7. Nc3 {[%clk 0:03:03.2]} 7... Nbd7 {[%clk 0:03:00.5]} 8. Nd2 {[%clk 0:03:01.3]}
8... Be7 {[%clk 0:03:00.5]} 9. e4 {[%clk 0:03:01.2]} 9... dxe4 {[%clk
0:03:01.4]} 10. Ndxe4 {[%clk 0:03:02.1]} 10... Nxe4 {[%clk 0:03:01.8]} 11. Nxe4
{[%clk 0:03:03]} 11... O-O {[%clk 0:02:58.4]} 12. Qb3 {[%clk 0:02:55.3]} 12...
Qb6 {[%clk 0:02:53.7]} 13. Be3 {[%clk 0:02:53.2]} 13... Qxb3 {[%clk 0:02:44.3]}
14. axb3 {[%clk 0:02:52.4]} 14... a6 {[%clk 0:02:44.8]} 15. Rfd1 {[%clk
0:02:48.7]} 15... Rfd8 {[%clk 0:02:36.5]} 16. Rd2 {[%clk 0:02:47.6]} 16... Nf6
{[%clk 0:02:33.1]} 17. Nxf6+ {[%clk 0:02:47.3]} 17... Bxf6 {[%clk 0:02:33.1]}
18. Rad1 {[%clk 0:02:47.9]} 18... Kf8 {[%clk 0:02:30.2]} 19. d5 {[%clk
0:02:46.9]} 19... exd5 {[%clk 0:02:25.4]} 20. cxd5 {[%clk 0:02:47.8]} 20... Bd7
{[%clk 0:01:43.7]} 21. Bc5+ {[%clk 0:02:11.5]} 21... Kg8 {[%clk 0:01:42.8]} 22.
b4 {[%clk 0:01:54]} 22... cxd5 {[%clk 0:01:35.3]} 23. Bb6 {[%clk 0:01:34.1]}
23... Re8 {[%clk 0:01:25.4]} 24. Bxd5 {[%clk 0:01:33.6]} 24... Bc6 {[%clk
0:01:22.3]} 25. Bxc6 {[%clk 0:01:17]} 25... bxc6 {[%clk 0:01:23.2]} 26. Rc2
{[%clk 0:01:16.8]} 26... Re6 {[%clk 0:01:19.3]} 27. Rd7 {[%clk 0:01:11]} 27...
Be7 {[%clk 0:01:12.4]} 28. Bc5 {[%clk 0:00:52.1]} 28... Bxc5 {[%clk 0:01:10.9]}
29. bxc5 {[%clk 0:00:53]} 29... a5 {[%clk 0:01:06.2]} 30. Rd6 {[%clk 0:00:49.3]}
30... a4 {[%clk 0:00:59.7]} 31. Rcd2 {[%clk 0:00:46.2]} 31... Ra5 {[%clk
0:00:42.6]} 32. Rc2 {[%clk 0:00:36.7]} 32... Rxc5 {[%clk 0:00:31.1]} 33. Rd8+
{[%clk 0:00:36.1]} 33... Kh7 {[%clk 0:00:24]} 34. Rxc5 {[%clk 0:00:35.6]} 1-0

[Event "*** Titled Tuesday Blitz"]
[Site "Chess.com"]
[Date "2021.03.02"]
[Round "8"]
[White "Blitzking642"]
[Black "Shahaliyev"]
[Result "0-1"]
[WhiteElo "2368"]
[BlackElo "2686"]
[TimeControl "180+1"]
[EndTime "11:29:21 PST"]
[Termination "Shahaliyev won on time"]

1. e4 {[%clk 0:03:00.9]} 1... c6 {[%clk 0:03:00]} 2. c4 {[%clk 0:03:00.6]} 2...
d5 {[%clk 0:02:58.8]} 3. cxd5 {[%clk 0:03:01.5]} 3... cxd5 {[%clk 0:02:59.7]} 4.
exd5 {[%clk 0:03:02]} 4... Qxd5 {[%clk 0:03:00.1]} 5. Nc3 {[%clk 0:03:01.3]}
5... Qd8 {[%clk 0:03:00.7]} 6. d4 {[%clk 0:03:01.2]} 6... Nf6 {[%clk 0:03:01.4]}
7. Bc4 {[%clk 0:03:00.6]} 7... e6 {[%clk 0:03:01.6]} 8. Nf3 {[%clk 0:03:00.1]}
8... Be7 {[%clk 0:03:02.2]} 9. O-O {[%clk 0:02:59.4]} 9... Nbd7 {[%clk
0:03:02.2]} 10. Qe2 {[%clk 0:02:58.4]} 10... Nb6 {[%clk 0:03:01.3]} 11. Bb3
{[%clk 0:02:56.6]} 11... O-O {[%clk 0:03:01]} 12. Rd1 {[%clk 0:02:56.2]} 12...
Nbd5 {[%clk 0:03:00.4]} 13. Ne5 {[%clk 0:02:51.2]} 13... Bd7 {[%clk 0:02:59.5]}
14. Rd3 {[%clk 0:02:41.5]} 14... Bc6 {[%clk 0:02:38.3]} 15. Rh3 {[%clk
0:02:36.7]} 15... Nxc3 {[%clk 0:02:32.6]} 16. bxc3 {[%clk 0:02:33.9]} 16... Be4
{[%clk 0:02:33.1]} 17. Bc2 {[%clk 0:02:15.8]} 17... Bxc2 {[%clk 0:02:30.8]} 18.
Qxc2 {[%clk 0:02:16.7]} 18... Rc8 {[%clk 0:02:11.3]} 19. Bg5 {[%clk 0:02:11.6]}
19... g6 {[%clk 0:02:11.7]} 20. Qc1 {[%clk 0:01:48.6]} 20... Ne4 {[%clk
0:02:04.4]} 21. Bxe7 {[%clk 0:01:35.8]} 21... Qxe7 {[%clk 0:02:05.3]} 22. Qh6
{[%clk 0:01:35.6]} 22... Ng5 {[%clk 0:02:01.8]} 23. Rg3 {[%clk 0:01:13.1]} 23...
f6 {[%clk 0:01:57.1]} 24. Ng4 {[%clk 0:00:57.9]} 24... Qg7 {[%clk 0:01:49.5]}
25. Qh4 {[%clk 0:00:47.7]} 25... h5 {[%clk 0:01:19.9]} 26. Ne5 {[%clk
0:00:17.8]} 26... fxe5 {[%clk 0:01:15.5]} 27. Qxg5 {[%clk 0:00:18.4]} 27... exd4
{[%clk 0:01:13.2]} 28. cxd4 {[%clk 0:00:18.8]} 28... Rc2 {[%clk 0:01:03]} 29.
Qxg6 {[%clk 0:00:14.8]} 29... Qxg6 {[%clk 0:01:01.2]} 30. Rxg6+ {[%clk
0:00:15.7]} 30... Kh7 {[%clk 0:00:59.7]} 31. Rxe6 {[%clk 0:00:09.7]} 31... Rfxf2
{[%clk 0:01:00.2]} 32. Re7+ {[%clk 0:00:10]} 32... Kg6 {[%clk 0:00:59.5]} 33.
Rxb7 {[%clk 0:00:10.5]} 33... Rxg2+ {[%clk 0:00:59.2]} 34. Kh1 {[%clk
0:00:09.7]} 34... Rxh2+ {[%clk 0:00:59.3]} 35. Kg1 {[%clk 0:00:10.3]} 35...
Rcg2+ {[%clk 0:00:59.3]} 36. Kf1 {[%clk 0:00:10.5]} 36... h4 {[%clk 0:00:52.5]}
37. Rd1 {[%clk 0:00:02.9]} 37... h3 {[%clk 0:00:51.2]} 0-1

[Event "*** Titled Tuesday Blitz"]
[Site "Chess.com"]
[Date "2021.03.02"]
[Round "8"]
[White "Savagelittlemole"]
[Black "PushingpawnsNYC"]
[Result "1-0"]
[WhiteElo "2521"]
[BlackElo "2319"]
[TimeControl "180+1"]
[EndTime "11:29:22 PST"]
[Termination "Savagelittlemole won by checkmate"]

1. e4 {[%clk 0:03:00.9]} 1... c5 {[%clk 0:02:59.3]} 2. Ne2 {[%clk 0:03:01.2]}
2... e6 {[%clk 0:02:53.7]} 3. g3 {[%clk 0:03:01.6]} 3... a6 {[%clk 0:02:53.1]}
4. Bg2 {[%clk 0:03:02.2]} 4... Nc6 {[%clk 0:02:53.3]} 5. O-O {[%clk 0:03:02.7]}
5... Nf6 {[%clk 0:02:50.2]} 6. c3 {[%clk 0:03:02.6]} 6... d5 {[%clk 0:02:50.2]}
7. exd5 {[%clk 0:03:00.3]} 7... Nxd5 {[%clk 0:02:48.7]} 8. d4 {[%clk 0:03:00.9]}
8... Bd6 {[%clk 0:02:43.3]} 9. dxc5 {[%clk 0:03:00.4]} 9... Bxc5 {[%clk
0:02:43.2]} 10. Nd2 {[%clk 0:02:59.8]} 10... O-O {[%clk 0:02:41.3]} 11. Nb3
{[%clk 0:02:59.6]} 11... Be7 {[%clk 0:02:39.7]} 12. Nbd4 {[%clk 0:02:57.1]}
12... Bd7 {[%clk 0:02:37.9]} 13. Nf4 {[%clk 0:02:48.5]} 13... Nxd4 {[%clk
0:02:23.8]} 14. Nxd5 {[%clk 0:02:45.1]} 14... Nc6 {[%clk 0:02:17.3]} 15. Nxe7+
{[%clk 0:02:41.1]} 15... Qxe7 {[%clk 0:02:17.3]} 16. Bf4 {[%clk 0:02:32.3]}
16... e5 {[%clk 0:02:17.1]} 17. Re1 {[%clk 0:02:31.9]} 17... f6 {[%clk
0:02:16.9]} 18. Be3 {[%clk 0:02:28.7]} 18... Kh8 {[%clk 0:02:09.4]} 19. Qb3
{[%clk 0:02:22.8]} 19... b5 {[%clk 0:01:57.9]} 20. Rad1 {[%clk 0:02:11.3]} 20...
Rac8 {[%clk 0:01:51.6]} 21. Qd5 {[%clk 0:01:56.1]} 21... Be6 {[%clk 0:01:49.4]}
22. Qd6 {[%clk 0:01:56.3]} 22... Qe8 {[%clk 0:01:33.4]} 23. Bc5 {[%clk
0:01:37.1]} 23... Rg8 {[%clk 0:01:28.1]} 24. b3 {[%clk 0:01:19]} 24... Bg4
{[%clk 0:01:19.8]} 25. f3 {[%clk 0:00:35.3]} 25... Bf5 {[%clk 0:01:09.8]} 26.
Bb6 {[%clk 0:00:33.7]} 26... Ne7 {[%clk 0:01:01.8]} 27. f4 {[%clk 0:00:29.1]}
27... Rxc3 {[%clk 0:00:54.7]} 28. fxe5 {[%clk 0:00:28]} 28... Nc8 {[%clk
0:00:34.8]} 29. Qd4 {[%clk 0:00:27.9]} 29... Rc2 {[%clk 0:00:27.5]} 30. exf6
{[%clk 0:00:22.2]} 30... Rxg2+ {[%clk 0:00:26.5]} 31. Kxg2 {[%clk 0:00:21.9]}
31... Qc6+ {[%clk 0:00:26.7]} 32. Kg1 {[%clk 0:00:17.5]} 32... Qxb6 {[%clk
0:00:20.9]} 33. fxg7+ {[%clk 0:00:17.8]} 33... Rxg7 {[%clk 0:00:20.5]} 34. Re8#
{[%clk 0:00:18.4]} 1-0

[Event "*** Titled Tuesday Blitz"]
[Site "Chess.com"]
[Date "2021.03.02"]
[Round "8"]
[White "mr65"]
[Black "mirochka"]
[Result "0-1"]
[WhiteElo "2083"]
[BlackElo "2229"]
[TimeControl "180+1"]
[EndTime "11:29:24 PST"]
[Termination "mirochka won on time"]

1. e4 {[%clk 0:03:00.9]} 1... c5 {[%clk 0:02:58.4]} 2. d4 {[%clk 0:03:00.5]}
2... cxd4 {[%clk 0:02:56.5]} 3. c3 {[%clk 0:03:00]} 3... dxc3 {[%clk 0:02:57.1]}
4. Nxc3 {[%clk 0:02:59.2]} 4... Nc6 {[%clk 0:02:56.7]} 5. Nf3 {[%clk 0:02:59.1]}
5... e6 {[%clk 0:02:54.1]} 6. Bc4 {[%clk 0:02:58.2]} 6... a6 {[%clk 0:02:53.5]}
7. O-O {[%clk 0:02:57.1]} 7... Nge7 {[%clk 0:02:54]} 8. Bg5 {[%clk 0:02:54.4]}
8... f6 {[%clk 0:02:53.1]} 9. Bh4 {[%clk 0:02:52.9]} 9... Ng6 {[%clk 0:02:52.3]}
10. Bg3 {[%clk 0:02:52.8]} 10... Be7 {[%clk 0:02:51]} 11. Qe2 {[%clk 0:02:51.8]}
11... O-O {[%clk 0:02:49]} 12. Rfd1 {[%clk 0:02:50.3]} 12... Qe8 {[%clk
0:02:38.5]} 13. Nd5 {[%clk 0:02:32.1]} 13... exd5 {[%clk 0:02:10]} 14. exd5
{[%clk 0:02:30.8]} 14... Nce5 {[%clk 0:02:10.5]} 15. d6+ {[%clk 0:02:30]} 15...
Nxc4 {[%clk 0:01:44.3]} 16. dxe7 {[%clk 0:02:16.6]} 16... Qxe7 {[%clk
0:01:27.8]} 17. Qxc4+ {[%clk 0:02:15.1]} 17... Qf7 {[%clk 0:01:22.4]} 18. Qc5
{[%clk 0:01:59.9]} 18... Re8 {[%clk 0:01:18.5]} 19. Re1 {[%clk 0:01:53.5]} 19...
Re6 {[%clk 0:01:10.6]} 20. Nd4 {[%clk 0:01:43.7]} 20... Rxe1+ {[%clk 0:01:04.6]}
21. Rxe1 {[%clk 0:01:41]} 21... d5 {[%clk 0:01:05]} 22. h4 {[%clk 0:01:32.8]}
22... h5 {[%clk 0:01:03.3]} 23. Qd6 {[%clk 0:00:50.2]} 23... Bd7 {[%clk
0:00:55.1]} 24. Qc7 {[%clk 0:00:38.1]} 24... Bc6 {[%clk 0:00:48.3]} 25. Qb6
{[%clk 0:00:33]} 25... Rc8 {[%clk 0:00:42.9]} 26. Rc1 {[%clk 0:00:22.2]} 26...
Qd7 {[%clk 0:00:30.8]} 27. b4 {[%clk 0:00:11.2]} 27... Ne5 {[%clk 0:00:29.2]}
28. b5 {[%clk 0:00:03.1]} 28... axb5 {[%clk 0:00:27.9]} 0-1